lending/lending_fUSD_20240522
["ID","MTS","AMOUNT","RATE_DAILY","PERIOD"]
[327729615,1716390638460,-2198.35194086,0.00024654,2]
[327729616,1716390638537,-5216.0,0.00024654,2]
[327729617,1716390638550,-93327.52872332,0.00024654,2]
[327729618,1716390638561,-14592.44126202,0.00024655,2]
[327729619,1716390638571,-726.17,0.00024655,2]
[327729620,1716390638582,-192.73332262,0.00024655,2]
[327729621,1716390638592,-231.9235206,0.00024655,2]
[327729622,1716390638602,-525.5933519,0.00024655,2]
[327729623,1716390638612,-358.72927992,0.00024655,10]
[327729624,1716390638622,-239.735568,0.00024655,2]
[327729625,1716390638633,-396.46160762,0.00024655,2]
[327729626,1716390638643,-10529.4669443,0.00024656,2]
[327729627,1716390638654,-250.0,0.00024658,2]
[327729628,1716390638663,-1566.03064875,0.00024786,2]
[327729629,1716390638677,-163.34464206,0.00024835,2]
[327729630,1716390638687,-740.03657713,0.00024889,2]
[327729631,1716390638701,-2958.75116796,0.00024898,2]
[327729632,1716390638710,-13637.0533838,0.000249,2]
[327729633,1716390638883,-5011.6,0.000249,2]
[327729634,1716390640048,-884.29427894,0.000249,2]
[327729635,1716390640062,-345.1849985,0.000249,2]
[327729636,1716390640076,-1476.6540648,0.000249,2]
[327729641,1716390640365,-3928.67887252,0.000249,2]
[327729643,1716390640377,-2222.0873454,0.000249,2]
[327729645,1716390640390,-35130.8308083,0.000249,2]
[327729647,1716390640402,-229.69094774,0.000249,2]
[327729649,1716390640412,-159.85721621,0.000249,2]
[327729651,1716390640422,-2455.36532161,0.000249,2]
[327729653,1716390640433,-172.78717872,0.000249,2]
[327729655,1716390640443,-318.0137634,0.000249,2]
[327729657,1716390640456,-188.13954257,0.0002491,2]
[327729659,1716390640466,-151.59,0.0002499,2]
[327729661,1716390640475,-200.0,0.00024998,2]
[327729663,1716390640486,-568.83914717,0.00024998,2]
[327729665,1716390640496,-173.51087384,0.00024998,2]
[327729667,1716390640507,-225.26857882,0.00024998,2]
[327729669,1716390640517,-215.91019483,0.00024999,2]
[327729671,1716390640527,-966.25283365,0.00025,2]
[327729673,1716390640539,-4446.05,0.00025,2]
[327729675,1716390640550,-863.57462508,0.00025,2]
[327729677,1716390640562,-952.39743749,0.00025,2]
[327729680,1716390640574,-40087.31332761,0.00025,2]
[327729682,1716390640587,-21786.0,0.00025,2]
[327729684,1716390640598,-2263.88315522,0.00025,2]
[327729763,1716390643160,-25561.91,0.00025,2]
[327729764,1716390643337,-7005.6,0.00025,2]
[327729765,1716390643349,-1214.82200047,0.00025,2]
[327729766,1716390643361,-3027.52060758,0.00025,2]
[327729767,1716390643514,-1413.05248701,0.00025,2]
[327729768,1716390643944,-852652.78033673,0.00025,2]
[327729770,1716390643956,-9550.99608272,0.00025,2]
[327729772,1716390643966,-224.2998362,0.00025,2]
[327729774,1716390643976,-16767.28241114,0.00025,2]
[327729776,1716390643985,-1599.21183069,0.00025,2]
[327729778,1716390643995,-200.0,0.00025,2]
[327729780,1716390644005,-61113.10105009,0.00025,2]
[327729782,1716390644015,-1193.42893,0.00025,2]
[327729784,1716390644025,-246.04,0.00025143,2]
[327729786,1716390644035,-157.38762473,0.00025196,2]
[327729788,1716390644044,-188.13954257,0.00025249,2]
[327729790,1716390644054,-200.0,0.0002525,2]
[327729792,1716390644063,-167.0,0.00025329,2]
[327729794,1716390644073,-156.04881086,0.00025396,2]
[327729795,1716390644082,-156.04881086,0.00025691,2]
[327729797,1716390644091,-740.03657713,0.00025712,2]
[327729799,1716390644101,-2958.7511679,0.00025712,2]
[327729801,1716390644112,-156.8025776,0.00025727,2]
[327729803,1716390644123,-2455.36532154,0.00025855,2]
[327729805,1716390644132,-151.15504737,0.00026109,2]
[327729807,1716390644142,-159.3699911,0.00026122,2]
[327729809,1716390644152,-291.71,0.00026154,2]
[327729811,1716390644162,-318.01376333,0.00026213,2]
[327729813,1716390644177,-166.66666667,0.00026294,2]
[327729815,1716390644188,-154.94429311,0.00026595,2]
[327729816,1716390644199,-166.29644051,0.00026647,2]
[327729818,1716390644209,-159.5071805,0.0002679,2]
[327729820,1716390644221,-2455.36532154,0.00026809,2]
[327729822,1716390644232,-187.9,0.00026861,2]
[327729824,1716390644242,-740.03657713,0.00026869,2]
[327729826,1716390644252,-2958.7511679,0.00026869,2]
[327729828,1716390644263,-1782.0,0.000269,2]
[327729830,1716390644273,-200.59,0.00026921,2]
[327729832,1716390644284,-257.81,0.00026921,2]
[327729834,1716390644295,-183950.09236933,0.00027,2]
[327729836,1716390644305,-155.32828018,0.0002705,2]
[327729838,1716390644315,-154.94429311,0.00027099,2]
[327729840,1716390644324,-150.0,0.00027277,2]
[327729842,1716390644333,-2159.0,0.00027277,2]
[327729844,1716390644343,-1643.0,0.00027277,2]
[327729846,1716390644352,-1225.0,0.00027277,2]
[327729848,1716390644361,-235.783,0.00027277,2]
[327729850,1716390644371,-993.703,0.00027277,2]
[327729851,1716390644380,-1000.0,0.00027318,2]
[327729853,1716390644390,-153.02819882,0.00027326,2]
[327729855,1716390644401,-156.04881086,0.00027358,2]
[327729857,1716390644412,-318.01376333,0.00027525,2]
[327729860,1716390644422,-2455.36532154,0.00027764,2]
[327729861,1716390644433,-156.04881086,0.00027784,2]
[327729863,1716390644442,-163.34464206,0.00027786,2]
[327729865,1716390644454,-154.94429313,0.00027838,2]
[327729867,1716390644464,-150.0,0.00027952,2]
[327729869,1716390644474,-7853.61170253,0.00028,2]
[327729871,1716390644484,-599.99999901,0.00028,5]
[327729873,1716390644495,-60000.0,0.00028,5]
[327729875,1716390644504,-60000.0,0.00028,5]
[327729877,1716390644515,-740.03657713,0.00028026,2]
[327729879,1716390644525,-2958.7511679,0.00028026,2]
[327729881,1716390644536,-159.3699911,0.0002816,2]
[327729883,1716390644547,-156.04881086,0.00028161,2]
[327729885,1716390644558,-150.0,0.00028243,2]
[327729887,1716390644569,-156.04881086,0.00028301,2]
[327729889,1716390644580,-200.0,0.00028394,15]
[327729891,1716390644590,-200.0,0.000284,2]
[327729893,1716390644600,-291.71,0.00028418,2]
[327729895,1716390644611,-150.0,0.00028525,2]
[327729897,1716390644621,-184.2797168,0.00028586,2]
[327729899,1716390644631,-19623.63845774,0.000286,2]
[327729901,1716390644641,-159.5071805,0.00028604,2]
[327729902,1716390644651,-150.0,0.00028665,2]
[327729904,1716390644661,-7886.9484118,0.00028678,2]
[327729906,1716390644671,-2455.36532154,0.00028718,2]
[327729907,1716390644681,-318.01376333,0.00028838,2]
[327729908,1716390644690,-156.04881088,0.00028882,2]
[327729909,1716390644702,-150.0,0.00028928,2]
[327729910,1716390644712,-60000.0,0.00029,5]
[327729911,1716390644723,-29041.99,0.00029,5]
[327729912,1716390644732,-166.66666666,0.00029009,2]
[327729913,1716390644741,-166.66666667,0.00029012,2]
[327729914,1716390644751,-175.85813927,0.00029076,4]
[327729915,1716390644760,-150.0,0.00029122,2]
[327729916,1716390644770,-1000.0,0.00029175,15]
[327729917,1716390644780,-500.0,0.00029175,2]
[327729918,1716390644790,-740.03657713,0.00029183,2]
[327729919,1716390644801,-2958.7511679,0.00029183,2]
[327729920,1716390644811,-150.0,0.00029296,2]
[327729921,1716390644821,-150.0,0.00029345,2]
[327729922,1716390644831,-150.0,0.00029349,2]
[327729923,1716390644841,-156.06,0.00029349,2]
[327729924,1716390644851,-150.0,0.00029354,2]
[327729925,1716390644861,-227.89058375,0.00029374,2]
[327729926,1716390644872,-150.0,0.00029375,2]
[327729927,1716390644882,-150.0,0.00029386,2]
[327729928,1716390644893,-156.104361,0.000294,6]
[327729929,1716390644904,-150.0,0.00029413,2]
[327729930,1716390644914,-150.0,0.00029467,2]
[327729931,1716390644924,-150.0,0.00029468,2]
[327729932,1716390644934,-150.0,0.00029489,2]
[327729933,1716390644944,-150.0,0.00029497,2]
[327729934,1716390644956,-225.80367726,0.000295,3]
[327729935,1716390644966,-150.0,0.00029522,2]
[327729936,1716390644976,-150.0,0.00029536,2]
[327729937,1716390644985,-150.0,0.00029547,2]
[327729938,1716390644995,-150.0,0.00029553,2]
[327729939,1716390645005,-7759.18671295,0.00029559,2]
[327729940,1716390645015,-150.0,0.00029589,2]
[327729941,1716390645025,-200.0,0.00029592,2]
[327729942,1716390645035,-1000.0,0.00029592,15]
[327729943,1716390645045,-500.0,0.00029592,2]
[327729944,1716390645056,-200.0,0.00029592,2]
[327729945,1716390645066,-486.0,0.000296,14]
[327729946,1716390645076,-486.0,0.000296,14]
[327729947,1716390645086,-344.0,0.000296,2]
[327729948,1716390645096,-150.0,0.00029619,2]
[327729949,1716390645105,-7957.0107689,0.00029664,2]
[327729950,1716390645115,-78324.4477248,0.00029664,2]
[327729951,1716390645125,-14079.9689895,0.00029664,2]
[327729952,1716390645134,-1216.2606641,0.00029664,2]
[327729953,1716390645144,-4311.1498639,0.00029664,2]
[327729954,1716390645154,-151.57874298,0.00029665,2]
[327729955,1716390645163,-5900.0,0.00029669,10]
[327729956,1716390645177,-158.43327398,0.00029669,2]
[327729957,1716390645188,-549.34073277,0.00029669,2]
[327729958,1716390645201,-1214.44476273,0.00029669,2]
[327729959,1716390645210,-195.36991449,0.00029669,2]
[327729960,1716390645222,-1773.05966905,0.00029669,2]
[327729961,1716390645231,-256.54122443,0.00029669,2]
[327729962,1716390645241,-1262.82225324,0.00029669,2]
[327729963,1716390645251,-7600.0,0.00029669,2]
[327729964,1716390645262,-155.15567332,0.00029669,2]
[327729965,1716390645273,-150.01,0.0002967,2]
[327729966,1716390645285,-3980.67602792,0.0002967,2]
[327729967,1716390645295,-192.97869952,0.0002967,2]
[327729968,1716390645304,-257.65395905,0.0002967,2]
[327729969,1716390645314,-7609.1106861,0.00029671,2]
[327729970,1716390645325,-2455.36532154,0.00029673,2]
[327729971,1716390645335,-150.0,0.00029684,2]
[327729972,1716390645344,-169.8,0.00029684,15]
[327729973,1716390645354,-150.0,0.00029691,2]
[327729974,1716390645364,-150.5,0.00029694,15]
[327729975,1716390645374,-2312.0,0.00029699,4]
[327729976,1716390645384,-2200.0,0.00029724,15]
[327729977,1716390645394,-327.0,0.0002973,5]
[327729978,1716390645403,-150.0,0.00029799,2]
[327729979,1716390645413,-155.68254985,0.000298,2]
[327729980,1716390645422,-9756.22025751,0.000298,5]
[327729981,1716390645432,-1000.0,0.000298,2]
[327729982,1716390645442,-223.0,0.000298,2]
[327729983,1716390645454,-353.0,0.000298,2]
[327729984,1716390645464,-159.5071805,0.00029831,2]
[327729985,1716390645473,-1524.825304,0.00029863,14]
[327729986,1716390645483,-1043.83643081,0.00029868,2]
[327729987,1716390645492,-445.41817332,0.00029868,2]
[327729988,1716390645502,-37481.60438299,0.00029868,2]
[327729989,1716390645512,-257.11879413,0.00029868,2]
[327729990,1716390645521,-20224.52025968,0.00029868,2]
[327729991,1716390645531,-500.0,0.00029868,2]
[327729992,1716390645540,-155.0,0.00029868,2]
[327729993,1716390645549,-2000.0,0.00029868,2]
[327729994,1716390645558,-200.0,0.00029868,2]
[327729995,1716390645568,-2000.0,0.00029868,2]
[327729996,1716390645577,-200.0,0.00029868,2]
[327729997,1716390645587,-1500.0,0.000299,3]
[327729998,1716390645596,-150.0,0.000299,6]
[327729999,1716390645606,-150.0,0.00029921,2]
[327730000,1716390645615,-1627.10087089,0.00029944,2]
[327730001,1716390645625,-150.0,0.00029944,2]
[327730002,1716390645634,-150.0,0.0002996,2]
[327730003,1716390645643,-150.0,0.00029994,2]
[327730005,1716390645652,-108970.0938162,0.00029997,2]
[327730007,1716390645662,-23826.89758914,0.0003,4]
[327730008,1716390645671,-2343.08678723,0.0003,4]
[327730010,1716390645681,-19403.63375217,0.0003,4]
[327730013,1716390645691,-5689.27995954,0.0003,2]
[327730016,1716390645705,-250269.21150917,0.0003,2]
[327730019,1716390645714,-30000.0,0.0003,4]
[327730021,1716390645724,-1126.36374221,0.0003,2]
[327730023,1716390645734,-426.91248973,0.0003,30]
[327730028,1716390645851,-155.0,0.0003,3]
[327730029,1716390645861,-2231.58083481,0.0003,3]
[327730030,1716390645870,-1019.80272793,0.0003,60]
[327730031,1716390645880,-585.33768545,0.0003,2]
[327730032,1716390645889,-14000.0,0.0003,4]
[327730033,1716390645898,-327.619861,0.0003,2]
[327730034,1716390645907,-1193.42893,0.0003,2]
[327730035,1716390645916,-300.0,0.0003,7]
[327730036,1716390645925,-165.72518546,0.00030047,2]
[327730037,1716390645935,-1000.0,0.0003005,2]
[327730038,1716390645944,-3500.0,0.00030136,6]
[327730039,1716390645955,-318.01376333,0.0003015,2]
[327730040,1716390645965,-200.0,0.00030166,2]
[327730041,1716390645974,-1000.0,0.00030166,15]
[327730042,1716390645983,-500.0,0.00030166,2]
[327730043,1716390645992,-200.0,0.00030166,2]
[327730044,1716390646001,-2000.0,0.00030167,2]
[327730045,1716390646010,-200.0,0.00030167,2]
[327730046,1716390646019,-2000.0,0.00030167,2]
[327730047,1716390646029,-200.0,0.00030167,2]
[327730048,1716390646038,-1655.602704,0.0003018,11]
[327730049,1716390646047,-7449.65,0.00030181,5]
[327730050,1716390646057,-1000.0,0.000302,11]
[327730051,1716390646066,-1000.0,0.0003022,11]
[327730052,1716390646075,-1000.0,0.0003024,11]
[327730053,1716390646085,-7428.96,0.00030254,5]
[327730054,1716390646095,-1000.0,0.0003026,11]
[327730055,1716390646104,-150.0,0.00030277,2]
[327730056,1716390646115,-1609.842,0.00030277,2]
[327730057,1716390646124,-523.835,0.00030277,2]
[327730058,1716390646134,-1000.0,0.0003028,11]
[327730059,1716390646143,-1000.0,0.000303,11]
[327730060,1716390646152,-172.55608154,0.0003031,2]
[327730061,1716390646162,-1006.95389295,0.0003031,2]
[327730062,1716390646173,-12200.03158091,0.0003031,2]
[327730063,1716390646187,-197.87473693,0.0003031,2]
[327730064,1716390646196,-179.07979228,0.0003031,2]
[327730065,1716390646208,-10000.0,0.0003031,2]
[327730066,1716390646219,-7214.66,0.00030316,5]
[327730067,1716390646228,-1000.0,0.0003032,11]
[327730068,1716390646238,-740.03657713,0.00030339,2]
[327730069,1716390646247,-2958.7511679,0.0003034,2]
[327730070,1716390646257,-1000.0,0.0003034,11]
[327730071,1716390646267,-1000.0,0.0003036,11]
[327730072,1716390646277,-7366.23,0.00030361,5]
[327730073,1716390646286,-1000.0,0.0003038,11]
[327730074,1716390646296,-160.0,0.000304,3]
[327730075,1716390646305,-251.0,0.000304,19]
[327730076,1716390646315,-688.0,0.000304,3]
[327730077,1716390646324,-351.0,0.000304,3]
[327730078,1716390646333,-3077.2483,0.000304,2]
[327730079,1716390646343,-200.0,0.000304,3]
[327730080,1716390646352,-1000.0,0.000304,11]
[327730081,1716390646362,-1500.0,0.000304,3]
[327730082,1716390646372,-673.9296,0.000304,2]
[327730083,1716390646382,-150.0,0.000304,6]
[327730084,1716390646391,-1063.6119,0.000304,2]
[327730085,1716390646401,-293.04085995,0.00030408,4]
[327730086,1716390646411,-460.59652737,0.00030408,4]
[327730087,1716390646420,-7288.11,0.00030409,5]
[327730088,1716390646430,-435539.52290706,0.0003041,11]
[327730089,1716390646847,-560.85470699,0.00024555,2]
[327730090,1716390646859,-18364.02684898,0.00024555,2]
[327730091,1716390646871,-13794.27954403,0.00024555,2]
[327730092,1716390646881,-505.28772991,0.00024999,2]
[327730093,1716390646890,-4419.13272603,0.0003041,11]
[327730094,1716390646902,-1340.57,0.0003041,11]
[327730104,1716390704315,210.29,0.00027585,120]
[327730129,1716391832176,-505.28772991,0.00013925,2]
[327730130,1716391832186,-132.41227009,0.00013926,2]
[327730131,1716391832197,-270.10049879,0.00013926,2]
[327730132,1716391832206,-155.0,0.00013926,2]
[327730133,1716391832215,-321.83343734,0.00013927,2]
[327730134,1716391832225,-4361.84817066,0.00013927,2]
[327730135,1716391832237,-3157.55596362,0.00013927,2]
[327730136,1716391832246,-173.54651541,0.00013928,2]
[327730137,1716391832256,-446.8178927,0.00013929,2]
[327730138,1716391832265,-150.0,0.0001393,2]
[327730139,1716391832276,-1174.63410078,0.00013953,2]
[327730140,1716391832288,-1743.38079187,0.00013953,2]
[327730141,1716391832298,-152.15,0.00013973,2]
[327730142,1716391832308,-170.5,0.00013973,2]
[327730143,1716391832317,-210.0,0.00015323,2]
[327730144,1716391832326,-240.0,0.00016855,2]
[327730145,1716391832337,-249.25,0.00017097,2]
[327730146,1716391832348,-499.99,0.0001726,2]
[327730147,1716391832358,-66.13520158,0.000183,2]
[327730148,1716391832372,-1066.29448189,0.000183,2]
[327730150,1716391835036,-1728.57031653,0.000183,2]
[327730151,1716391835047,-151.0,0.00019008,3]
[327730154,1716391835056,-1041.73231324,0.00019199,2]
[327730155,1716391835066,-3881.14394197,0.00019451,2]
[327730156,1716391835076,-268.6,0.00019469,2]
[327730157,1716391835086,-155.0,0.00019918,2]
[327730158,1716391835096,-170.5,0.00020447,2]
[327730159,1716391835106,-155.0,0.00021138,2]
[327730160,1716391835116,-9841.33132807,0.0002114,2]
[327730161,1716391835128,-818.82444517,0.0002114,2]
[327730162,1716391835140,-555.59877824,0.0002114,2]
[327730163,1716391835152,-6849.98086953,0.0002114,2]
[327730164,1716391835164,-279.69657276,0.0002114,2]
[327730165,1716391835178,-1098.8377003,0.0002114,2]
[327730166,1716391835190,-3745.24662543,0.0002114,2]
[327730167,1716391835206,-710.4836805,0.0002114,2]
[327730168,1716391835216,-550.51,0.00021153,2]
[327730169,1716391835226,-171.69396676,0.00021219,2]
[327730170,1716391835237,-828.30603324,0.00021219,2]
[327730171,1716391835247,-828.98,0.00021221,2]
[327730172,1716391835257,-434.56,0.00021234,2]
[327730173,1716391835266,-154.7233311,0.00021334,2]
[327730174,1716391835278,-253.083484,0.00021334,2]
[327730175,1716391835290,-350.0,0.00021334,2]
[327730176,1716391838301,-6239.63008206,0.0002,2]
[327730209,1716391838416,-1993.1931849,0.00021334,2]
[327730213,1716391838431,-1808.5,0.00021344,3]
[327730216,1716391838441,-250.0,0.00021368,2]
[327730218,1716391838449,-174.64,0.00021397,2]
[327730220,1716391838459,-164.12,0.00021413,2]
[327730222,1716391838469,-250.0,0.00021419,2]
[327730224,1716391838478,-448.64,0.00021568,2]
[327730225,1716391838488,-164.13,0.00021684,2]
[327730226,1716391838498,-268.6,0.00021733,2]
[327730227,1716391838507,-6771.4801469,0.000219,2]
[327730228,1716391838517,-1000.0,0.000219,2]
[327730229,1716391838526,-274.33,0.00021918,2]
[327730231,1716391838535,-163.86,0.00021918,2]
[327730232,1716391838544,-798.55,0.00021918,2]
[327730234,1716391838554,-2000.0,0.00021918,2]
[327730236,1716391838568,-483.2796384,0.0002208,2]
[327730238,1716391838578,-155.5415253,0.0002208,2]
[327730240,1716391838587,-155.50433289,0.0002208,2]
[327730242,1716391838597,-726.23771159,0.0002208,2]
[327730243,1716391838607,-319.39260741,0.0002208,2]
[327730244,1716391838616,-882.41621094,0.0002208,2]
[327730245,1716391838626,-1254.98401423,0.00022081,2]
[327730246,1716391838635,-152.027829,0.00022148,2]
[327730247,1716391838644,-192.13815045,0.00022161,2]
[327730248,1716391838655,-159.57553813,0.00022162,2]
[327730249,1716391838664,-159.57553813,0.00022235,2]
[327730250,1716391838675,-159.57553813,0.00022323,2]
[327730251,1716391838684,-192.13815045,0.00022406,2]
[327730252,1716391838693,-217.26345337,0.00022408,2]
[327730253,1716391838703,-152.027829,0.00022441,2]
[327730254,1716391838712,-159.57553813,0.00022529,2]
[327730255,1716391838721,-151.59155155,0.00022595,2]
[327730256,1716391838732,-158.59893442,0.00022722,2]
[327730257,1716391838741,-159.57553813,0.00022745,2]
[327730258,1716391838751,-192.13815045,0.00022753,2]
[327730259,1716391838760,-155.96751352,0.00022822,2]
[327730260,1716391838769,-150.93598214,0.00022965,2]
[327730261,1716391838778,-750.0,0.00023,2]
[327730262,1716391838788,-151.59155155,0.0002303,2]
[327730263,1716391838797,-154.49054118,0.0002308,2]
[327730264,1716391838807,-155.96751352,0.00023164,2]
[327730265,1716391838816,-154.49054118,0.00023211,2]
[327730267,1716391838826,-152.027829,0.0002328,2]
[327730269,1716391838835,-151.97205109,0.00023302,2]
[327730271,1716391838845,-192.13815045,0.00023309,2]
[327730272,1716391838854,-154.67800329,0.00023327,2]
[327730273,1716391838863,-159.57553813,0.00023451,2]
[327730274,1716391838872,-166.66666666,0.00023464,2]
[327730275,1716391838881,-150.93598214,0.00023548,2]
[327730276,1716391838891,-155.96751352,0.00023671,2]
[327730277,1716391838900,-171.1,0.000237,2]
[327730278,1716391838910,-159.57553813,0.00023849,2]
[327730279,1716391838919,-1000.0,0.00023871,2]
[327730280,1716391838932,-159.16129054,0.000239,2]
[327730281,1716391838941,-152.027829,0.00023995,2]
[327730282,1716391838950,-268.6,0.00023997,2]
[327730283,1716391838960,-150.93598214,0.00024164,2]
[327730284,1716391838969,-155.96751352,0.00024177,2]
[327730285,1716391838978,-158.59893443,0.00024194,2]
[327730286,1716391838987,-180.0,0.0002423,2]
[327730287,1716391838997,-448.64,0.00024264,2]
[327730288,1716391839007,-192.13815045,0.00024297,2]
[327730289,1716391839016,-192.13815045,0.0002439,2]
[327730290,1716391839026,-192.13815045,0.00024392,2]
[327730291,1716391839035,-151.59155155,0.00024403,2]
[327730292,1716391839049,-2854.87149778,0.00024455,2]
[327730293,1716391839075,-2024.46590222,0.00024455,2]
[327730294,1716391839093,-1890.9922,0.00024455,2]
[327730295,1716391839113,-1000.0,0.00024455,2]
[327730296,1716391839136,-8777.01060039,0.00024455,2]
[327730297,1716391839160,-1524.72939961,0.00024455,2]
[327730298,1716391839180,-192.13815045,0.00024475,2]
[327730299,1716391839197,-1400.0,0.000245,3]
[327730300,1716391839213,-6825.63,0.00024545,2]
[327730301,1716391839235,-157.82420216,0.00024553,2]
[327730302,1716391839255,-155.0,0.00024553,4]
[327730303,1716391839273,-271.53784341,0.00024553,2]
[327730304,1716391839289,-155.79798778,0.00024553,2]
[327730305,1716391839308,-155.0,0.00024553,2]
[327730306,1716391839323,-306.53932748,0.00024553,2]
[327730307,1716391839341,-175.91087018,0.00024553,2]
[327730308,1716391839361,-155.0,0.00024553,2]
[327730309,1716391839377,-275.50152538,0.00024553,2]
[327730310,1716391839392,-155.0,0.00024554,2]
[327730311,1716391839409,-5835.69345385,0.00024555,2]
[327730312,1716391839429,-480.95858049,0.00024555,2]
[327730313,1716391839448,-1233.83802225,0.00024555,2]
[327730314,1716391839467,-11075.76186206,0.00024555,2]
[327730315,1716391839486,-1709.82813858,0.00024555,2]
[327730316,1716391839506,-3118.3,0.00024555,2]
[327730317,1716391839525,-354.13768555,0.00024555,2]
[327730318,1716391839543,-9523.4799505,0.00024555,2]
[327730319,1716391839561,-1035.63820672,0.00024555,2]
[327730320,1716391839579,-20494.9805,0.00024555,2]
[327730321,1716391839595,-500.0,0.00024555,2]
[327730322,1716391839612,-100000.0,0.00024555,2]
[327730323,1716391839628,-159.57553813,0.0002462,2]
[327730324,1716391839645,-250.0,0.00024658,2]
[327730325,1716391839662,-192.13815045,0.00024695,2]
[327730326,1716391839681,-503.0,0.000247,2]
[327730327,1716391839697,-152.027829,0.00024702,2]
[327730328,1716391839712,-152.027829,0.00024783,2]
[327730329,1716391839728,-182.24211781,0.00024918,2]
[327730330,1716391839745,-253.10572752,0.00024931,2]
[327730331,1716391839761,-192.13815045,0.0002495,2]
[327730332,1716391839779,-188.44921115,0.0002496,2]
[327730333,1716391839795,-2607.8394259,0.0002496,2]
[327730334,1716391839811,-1853.45337204,0.0002496,2]
[327730335,1716391839827,-248.0,0.0002497,15]
[327730336,1716391839844,-248.0,0.0002498,15]
[327730337,1716391839860,-248.0,0.0002499,15]
[327730338,1716391839876,-155.88,0.0002499,2]
[327730339,1716391839893,-155.88,0.0002499,2]
[327730340,1716391839909,-155.88,0.0002499,2]
[327730341,1716391839926,-6825.63,0.0002499,2]
[327730342,1716391839942,-3202.11394179,0.0002499,2]
[327730343,1716391840874,-1555.00345,0.0002499,2]
[327730344,1716391840885,-1811.8099182,0.0002499,2]
[327730345,1716391840897,-256.70269001,0.0002499,2]
[327730346,1716391840906,-6825.63,0.0002499,2]
[327730347,1716391840916,-6825.63,0.0002499,2]
[327730348,1716391840926,-246.55231067,0.0002499,2]
[327730349,1716391840935,-246.55231067,0.0002499,2]
[327730350,1716391840944,-10057.74936105,0.00025,2]
[327730351,1716391840956,-103875.07058299,0.00025,2]
[327730352,1716391840967,-1181.22,0.00025,2]
[327730353,1716391840979,-1047.1115,0.00025,2]
[327730354,1716391840991,-500.0,0.00025,2]
[327730355,1716391841002,-712.54449098,0.00025,2]
[327730356,1716391841013,-3423.0802548,0.00025,2]
[327730357,1716391841024,-45020.91863579,0.00025,2]
[327730358,1716391841103,-818.03842971,0.00025,2]
[327730440,1716391843335,-566.08002,0.00025,2]
[327730441,1716391843347,-594.62898012,0.00025,2]
[327730442,1716391843521,-293.774,0.00024989,2]
[327730443,1716391843533,-26.69125599,0.00024989,2]
[327730444,1716391843541,-155.7383082,0.00024989,2]
[327730445,1716391843550,-301.44039261,0.00024989,2]
[327730446,1716391843560,-2488.22404314,0.00025,2]
[327730447,1716391843594,-2521.93673112,0.00025,2]
[327730448,1716391843606,-834.84402618,0.00025,2]
[327730449,1716391843618,-4445.23740939,0.00025,2]
[327730456,1716391846438,-155.0,0.00024988,2]
[327730458,1716391846448,-1271.41666154,0.00024989,2]
[327730460,1716391846457,-26758.21721998,0.00025,2]
[327730514,1716392121168,174.0,0.00019716,15]
[327730515,1716392121717,174.0,0.00019706,15]
[327730516,1716392122340,174.0,0.00019696,15]
[327730517,1716392139639,8199.2146,0.0001081,2]
[327730518,1716392139670,243323.13016809,0.0001081,2]
[327730519,1716392188391,150.0,0.0001081,2]
[327730520,1716392188413,30.23015503,0.0001081,2]
[327730521,1716392190367,191.39,0.0001081,2]
[327730522,1716392190390,170.84063695,0.0001081,2]
[327730523,1716392190926,289.27687605,0.0001081,2]
[327730524,1716392193944,150.0,0.0001081,2]
[327730525,1716392193968,142.40415811,0.0001081,2]
[327730526,1716392194066,7.59584189,0.0001081,2]
[327730527,1716392194088,150.0,0.0001081,2]
[327730528,1716392194108,150.0,0.0001081,2]